fUSD/lending_fUSD_20250720
["ID","MTS","AMOUNT","RATE_DAILY","PERIOD"]
[373457526,1753014690055,-4167.7,0.00019945,2]
[373457527,1753014690064,-1125.81,0.00019945,2]
[373457528,1753014690074,-1714.93,0.00019945,2]
[373457529,1753014690083,-174.18,0.00019945,2]
[373457530,1753014690092,-480.0,0.00019945,2]
[373457531,1753014690102,-485.89,0.00019945,2]
[373457532,1753014690112,-728.46,0.00019945,2]
[373457533,1753014690121,-938.16,0.00019945,2]
[373457534,1753014690135,-480.0,0.00019945,2]
[373457535,1753014690144,-151.0,0.00019945,2]
[373457536,1753014690154,-480.0,0.00019945,2]
[373457537,1753014690163,-675.77,0.00019945,2]
[373457538,1753014690173,-921.94,0.00019945,2]
[373457539,1753014690182,-151.0,0.00019945,2]
[373457540,1753014690191,-480.0,0.00019945,2]
[373457541,1753014690201,-3135.79,0.00019945,2]
[373457542,1753014690210,-1176.04,0.00019945,2]
[373457543,1753014690219,-500.0,0.00019958,2]
[373457544,1753014690228,-1119.84,0.00019958,2]
[373457545,1753014690238,-76634.91768476,0.00019959,2]
[373457546,1753014690247,-151.0,0.00019959,2]
[373457547,1753014690257,-151.0,0.00019959,2]
[373457548,1753014690460,-154.409276,0.00019959,2]
[373457549,1753014690471,-151.0,0.00019959,2]
[373457550,1753014690480,-151.0,0.00019959,2]
[373457551,1753014690490,-151.0,0.00019959,2]
[373457552,1753014690499,-266.93644462,0.00019965,2]
[373457553,1753014690509,-514.0,0.0001997,2]
[373457554,1753014690519,-242.0,0.00019971,2]
[373457555,1753014690528,-503.80227597,0.00019973,2]
[373457556,1753014690538,-500.0,0.00019973,2]
[373457557,1753014690547,-62528.47061453,0.00019985,2]
[373457558,1753014690557,-151.0,0.00019986,2]
[373457559,1753014690566,-234.896569,0.00019986,2]
[373457560,1753014690575,-234.896569,0.00019986,2]
[373457561,1753014690587,-151.0,0.00019986,2]
[373457562,1753014690596,-151.0,0.00019986,2]
[373457563,1753014690605,-151.0,0.00019986,2]
[373457564,1753014690615,-151.0,0.00019986,2]
[373457565,1753014690624,-200.618341,0.00019986,2]
[373457566,1753014690633,-200.618341,0.00019986,2]
[373457567,1753014690643,-151.0,0.00019986,2]
[373457568,1753014690655,-151.0,0.00019986,2]
[373457569,1753014690665,-164.972825,0.00019986,2]
[373457570,1753014690674,-151.0,0.00019986,2]
[373457571,1753014690684,-151.0,0.00019986,2]
[373457572,1753014690693,-152.615949,0.00019986,2]
[373457573,1753014690703,-152.615949,0.00019986,2]
[373457574,1753014690712,-151.0,0.00019986,2]
[373457575,1753014690721,-151.0,0.00019986,2]
[373457576,1753014690731,-151.0,0.00019986,2]
[373457577,1753014690741,-154.648733,0.00019986,2]
[373457578,1753014690750,-154.648733,0.00019986,2]
[373457579,1753014690759,-151.0,0.00019986,2]
[373457580,1753014690769,-151.0,0.00019986,2]
[373457581,1753014690779,-45684.4408542,0.00019986,2]
[373457582,1753014690788,-42224.5782224,0.00019986,2]
[373457583,1753014690797,-151.0,0.00019986,2]
[373457584,1753014690807,-205.417696,0.00019986,2]
[373457585,1753014690822,-205.417696,0.00019986,2]
[373457586,1753014690831,-371.712937,0.00019986,2]
[373457587,1753014690840,-371.712937,0.00019986,2]
[373457588,1753014690850,-2128.4087008,0.00019986,2]
[373457589,1753014690859,-1967.2159272,0.00019986,2]
[373457590,1753014690869,-646.182708,0.00019986,2]
[373457591,1753014690879,-646.182708,0.00019986,2]
[373457592,1753014690888,-526.4330331,0.00019986,2]
[373457593,1753014690898,-496.9949149,0.00019986,2]
[373457594,1753014690910,-81611.1845071,0.00019986,2]
[373457595,1753014690919,-77317.4415451,0.00019986,2]
[373457596,1753014690929,-288.1220754,0.00019986,2]
[373457597,1753014690939,-272.9633427,0.00019986,2]
[373457598,1753014690948,-242.77957875,0.00019992,2]
[373457599,1753014690957,-242.0,0.00019997,2]
[373457600,1753014690967,-314.08887572,0.00019999,2]
[373457601,1753014690976,-466.28,0.00019999,2]
[373457602,1753014690995,-68840.68300523,0.00019999,2]
[373457603,1753014691004,-547894.88649723,0.0002,2]
[373457604,1753014691014,-4410.68565217,0.0002,2]
[373457605,1753014691024,-45736.28633141,0.0002,2]
[373457606,1753014691033,-212.29,0.0002,2]
[373457607,1753014691042,-999.99,0.0002,2]
[373457608,1753014691051,-3000.0,0.0002,2]
[373457609,1753014691060,-3000.01,0.0002,2]
[373457610,1753014691070,-2000.0,0.0002,2]
[373457611,1753014691080,-1152.61417023,0.0002,2]
[373457612,1753014691089,-250.0,0.0002,7]
[373457613,1753014691098,-20000.0,0.0002,2]
[373457614,1753014691108,-30000.0,0.0002,2]
[373457615,1753014691117,-3803.71646141,0.0002,14]
[373457616,1753014691126,-195.091139,0.0002,5]
[373457617,1753014691135,-1261.62481852,0.0002,2]
[373457618,1753014691144,-993.13559568,0.0002,2]
[373457619,1753014691153,-132903.0100566,0.0002,3]
[373457620,1753014691164,-7280.0,0.0002,2]
[373457621,1753014691173,-42718.90461693,0.0002,4]
[373457622,1753014691184,-1002.45501082,0.0002,2]
[373457623,1753014691193,-5007.0211594,0.0002,2]
[373457624,1753014691203,-174235.82721249,0.0002,7]
[373457625,1753014691213,-2042679.22344829,0.0002,2]
[373457626,1753014691796,-480.0,0.00019178,2]
[373457627,1753014691806,-480.0,0.00019616,2]
[373457628,1753014691816,-480.0,0.00019945,2]
[373457629,1753014691825,-3046.27223092,0.0002,2]
[373457630,1753014691842,-589.69911,0.00019287,2]
[373457631,1753014692598,-1666.66666666,0.00019,2]
[373457632,1753014692608,-1666.66666666,0.00019,2]
[373457633,1753014692618,-1666.66666666,0.00019,2]
[373457634,1753014692628,-3432.36,0.00019178,2]
[373457635,1753014692637,-480.0,0.00019178,2]
[373457636,1753014692648,-3996.05,0.00019178,2]
[373457637,1753014692664,-480.0,0.00019178,2]
[373457638,1753014692674,-480.0,0.00019178,2]
[373457639,1753014692683,-820.54,0.00019178,2]
[373457640,1753014692693,-1137.23,0.00019178,2]
[373457641,1753014692702,-500.0,0.00019178,2]
[373457642,1753014692712,-480.0,0.00019178,2]
[373457643,1753014692721,-8.70089,0.00019287,2]
[373457644,1753014692731,-608.24,0.00019287,2]
[373457645,1753014692740,-3432.36,0.00019287,2]
[373457646,1753014692749,-480.0,0.00019287,2]
[373457647,1753014692758,-3996.05,0.00019287,2]
[373457648,1753014692953,-480.0,0.00019287,2]
[373457649,1753014692963,-1137.23,0.00019287,2]
[373457650,1753014692973,-820.54,0.00019287,2]
[373457651,1753014692982,-480.0,0.00019287,2]
[373457652,1753014692992,-500.0,0.00019396,2]
[373457653,1753014693001,-598.4,0.00019397,2]
[373457654,1753014693010,-3432.36,0.00019397,2]
[373457655,1753014693019,-480.0,0.00019397,2]
[373457656,1753014693028,-3996.05,0.00019397,2]
[373457657,1753014693038,-480.0,0.00019397,2]
[373457658,1753014693047,-1137.23,0.00019397,2]
[373457659,1753014693056,-598.4,0.00019506,2]
[373457660,1753014693066,-3432.36,0.00019506,2]
[373457661,1753014693075,-480.0,0.00019506,2]
[373457662,1753014693089,-3996.05,0.00019506,2]
[373457663,1753014693099,-480.0,0.00019506,2]
[373457664,1753014693109,-1137.23,0.00019506,2]
[373457665,1753014693118,-402.45,0.00019616,2]
[373457666,1753014693128,-598.4,0.00019616,2]
[373457667,1753014693138,-3432.36,0.00019616,2]
[373457668,1753014693147,-480.0,0.00019616,2]
[373457669,1753014693158,-480.0,0.00019726,2]
[373457670,1753014693168,-598.4,0.00019726,2]
[373457671,1753014693178,-542.82256923,0.00019835,2]
[373457672,1753014693188,-598.4,0.00019835,2]
[373457673,1753014693197,-480.0,0.00019835,2]
[373457674,1753014693207,-1139.14,0.00019945,2]
[373457675,1753014693217,-583.29,0.00019945,2]
[373457676,1753014693226,-598.4,0.00019945,2]
[373457677,1753014693236,-480.0,0.00019945,2]
[373457678,1753014693246,-118032.67722413,0.0002,2]
[373457679,1753014694019,-248.058,0.00018513,2]
[373457680,1753014694029,-472.9986,0.00019078,2]
[373457681,1753014694039,-480.0,0.00019178,2]
[373457682,1753014694048,-480.0,0.00019178,2]
[373457683,1753014694058,-480.0,0.00019178,2]
[373457684,1753014694067,-480.0,0.00019287,2]
[373457685,1753014694076,-480.0,0.00019287,2]
[373457686,1753014694086,-480.0,0.00019287,2]
[373457687,1753014694095,-480.0,0.00019287,2]
[373457688,1753014694105,-820.54,0.00019397,2]
[373457689,1753014694114,-480.0,0.00019397,2]
[373457690,1753014694124,-480.0,0.00019397,2]
[373457691,1753014694133,-480.0,0.00019397,2]
[373457692,1753014694143,-480.0,0.00019397,2]
[373457693,1753014694152,-480.0,0.00019397,2]
[373457694,1753014694164,-500.0,0.00019505,2]
[373457695,1753014694173,-480.0,0.00019506,2]
[373457696,1753014694183,-820.54,0.00019506,2]
[373457697,1753014694192,-480.0,0.00019506,2]
[373457698,1753014694201,-480.0,0.00019506,2]
[373457699,1753014694212,-3996.05,0.00019616,2]
[373457700,1753014694222,-1137.23,0.00019616,2]
[373457701,1753014694232,-543.16,0.00019616,2]
[373457702,1753014694241,-820.54,0.00019616,2]
[373457703,1753014694250,-480.0,0.00019616,2]
[373457704,1753014694260,-436.17,0.00019616,2]
[373457705,1753014694269,-480.0,0.00019616,2]
[373457706,1753014694279,-420.0,0.00019725,2]
[373457707,1753014694289,-3432.36,0.00019726,2]
[373457708,1753014694299,-480.0,0.00019726,2]
[373457709,1753014694308,-1137.23,0.00019726,2]
[373457710,1753014694318,-3996.05,0.00019726,2]
[373457711,1753014694327,-820.54,0.00019726,2]
[373457712,1753014694337,-480.0,0.00019726,2]
[373457713,1753014694347,-480.0,0.00019726,2]
[373457714,1753014694357,-3432.36,0.00019835,2]
[373457715,1753014694368,-480.0,0.00019835,2]
[373457716,1753014694377,-1137.23,0.00019835,2]
[373457717,1753014694387,-820.54,0.00019835,2]
[373457718,1753014694397,-480.0,0.00019835,2]
[373457719,1753014694408,-480.0,0.00019835,2]
[373457720,1753014694418,-1137.23,0.00019945,2]
[373457721,1753014694428,-3432.36,0.00019945,2]
[373457722,1753014694438,-480.0,0.00019945,2]
[373457723,1753014694448,-820.54,0.00019945,2]
[373457724,1753014694458,-480.0,0.00019945,2]
[373457725,1753014694467,-1457537.43081264,0.0002,2]
[373457726,1753014694485,-3996.05,0.00019835,2]
[373457727,1753014694494,-1629978.52296402,0.0002,2]
[373457728,1753014694504,-210.6,0.0002,2]
[373457729,1753014694513,-2000.26552002,0.0002,2]
[373457730,1753014694523,-10008.0,0.0002,2]
[373457731,1753014694533,-3105.0,0.0002,2]
[373457732,1753014694543,-185.32094446,0.0002,2]
[373457733,1753014694552,-28223.47032368,0.0002,2]
[373457734,1753014694562,-187539.24737212,0.0002,2]
[373457735,1753014694572,-151.0,0.0002,2]
[373457736,1753014694582,-151.0,0.0002,2]
[373457737,1753014694591,-151.0,0.0002,2]
[373457738,1753014694600,-199.137429,0.0002,2]
[373457739,1753014694610,-151.0,0.0002,2]
[373457740,1753014694620,-169.731664,0.0002,2]
[373457741,1753014694629,-151.0,0.0002,2]
[373457742,1753014694639,-151.0,0.0002,2]
[373457743,1753014694650,-151.0,0.0002,2]
[373457744,1753014694663,-151.250479,0.0002,2]
[373457745,1753014694673,-151.0,0.0002,2]
[373457746,1753014694682,-151.0,0.0002,2]
[373457747,1753014694693,-151.0,0.0002,2]
[373457748,1753014694705,-151.0,0.0002,2]
[373457749,1753014694714,-151.0,0.0002,2]
[373457750,1753014694725,-151.0,0.0002,2]
[373457751,1753014694735,-165.049283,0.0002,2]
[373457752,1753014694745,-151.0,0.0002,2]
[373457753,1753014694754,-151.0,0.0002,2]
[373457754,1753014694763,-151.0,0.0002,2]
[373457755,1753014694773,-151.0,0.0002,2]
[373457756,1753014694782,-151.022006,0.0002,2]
[373457757,1753014694792,-293.31953,0.0002,2]
[373457758,1753014694802,-155.376604,0.0002,2]
[373457759,1753014694811,-151.0,0.0002,2]
[373457760,1753014694821,-151.0,0.0002,2]
[373457761,1753014694830,-234.896569,0.0002,2]
[373457762,1753014694841,-234.896569,0.0002,2]
[373457763,1753014694850,-234.896569,0.0002,2]
[373457764,1753014694860,-234.896569,0.0002,2]
[373457765,1753014694870,-151.0,0.0002,2]
[373457766,1753014694879,-151.0,0.0002,2]
[373457767,1753014694888,-175.178362,0.0002,2]
[373457768,1753014694898,-151.0,0.0002,2]
[373457769,1753014694908,-151.0,0.0002,2]
[373457770,1753014694917,-151.0,0.0002,2]
[373457771,1753014694926,-151.0,0.0002,2]
[373457772,1753014694936,-151.0,0.0002,2]
[373457773,1753014694945,-151.0,0.0002,2]
[373457774,1753014694955,-151.0,0.0002,2]
[373457775,1753014694964,-151.0,0.0002,2]
[373457776,1753014694973,-151.0,0.0002,2]
[373457777,1753014694983,-151.0,0.0002,2]
[373457778,1753014694993,-151.0,0.0002,2]
[373457779,1753014695002,-151.0,0.0002,2]
[373457780,1753014695012,-228.521797,0.0002,2]
[373457781,1753014695021,-151.0,0.0002,2]
[373457782,1753014695030,-151.0,0.0002,2]
[373457783,1753014695039,-151.0,0.0002,2]
[373457784,1753014695049,-151.0,0.0002,2]
[373457785,1753014695059,-151.0,0.0002,2]
[373457786,1753014695069,-151.0,0.0002,2]
[373457787,1753014695078,-49274.0,0.0002,14]
[373457788,1753014695088,-200.618341,0.0002,2]
[373457789,1753014695098,-200.618341,0.0002,2]
[373457790,1753014695109,-200.618341,0.0002,2]
[373457791,1753014695118,-200.618341,0.0002,2]
[373457792,1753014695128,-151.0,0.0002,2]
[373457793,1753014695138,-151.0,0.0002,2]
[373457794,1753014695149,-151.0,0.0002,2]
[373457795,1753014695159,-151.0,0.0002,2]
[373457796,1753014695168,-151.0,0.0002,2]
[373457797,1753014695177,-151.0,0.0002,2]
[373457798,1753014695186,-237.34,0.0002,2]
[373457799,1753014695196,-151.0,0.0002,2]
[373457800,1753014695206,-151.0,0.0002,2]
[373457801,1753014695216,-164.972825,0.0002,2]
[373457802,1753014695226,-164.972825,0.0002,2]
[373457803,1753014695235,-298.091024,0.0002,2]
[373457804,1753014695244,-151.0,0.0002,2]
[373457805,1753014695253,-685.439317,0.0002,2]
[373457806,1753014695262,-151.0,0.0002,2]
[373457807,1753014695273,-152.615949,0.0002,2]
[373457808,1753014695282,-152.615949,0.0002,2]
[373457809,1753014695291,-152.615949,0.0002,2]
[373457810,1753014695301,-152.615949,0.0002,2]
[373457811,1753014695310,-151.0,0.0002,2]
[373457812,1753014695321,-151.0,0.0002,2]
[373457813,1753014695331,-151.0,0.0002,2]
[373457814,1753014695342,-151.0,0.0002,2]
[373457815,1753014695352,-151.0,0.0002,2]
[373457816,1753014695362,-241.693198,0.0002,2]
[373457817,1753014695372,-151.0,0.0002,2]
[373457818,1753014695383,-151.0,0.0002,2]
[373457819,1753014695393,-151.0,0.0002,2]
[373457820,1753014695403,-151.0,0.0002,2]
[373457821,1753014695414,-151.0,0.0002,2]
[373457822,1753014695423,-154.648733,0.0002,2]
[373457823,1753014695433,-154.648733,0.0002,2]
[373457824,1753014695611,-151.0,0.0002,2]
[373457825,1753014695620,-170.334254,0.0002,2]
[373457826,1753014695629,-154.648733,0.0002,2]
[373457827,1753014695639,-154.648733,0.0002,2]
[373457828,1753014695651,-151.0,0.0002,2]
[373457829,1753014695662,-152.998333,0.0002,2]
[373457830,1753014695671,-151.0,0.0002,2]
[373457831,1753014695680,-151.0,0.0002,2]
[373457832,1753014695690,-151.0,0.0002,2]
[373457833,1753014695699,-197.695989,0.0002,2]
[373457834,1753014695708,-151.0,0.0002,2]
[373457835,1753014695717,-151.0,0.0002,2]
[373457836,1753014695727,-151.0,0.0002,2]
[373457837,1753014695736,-151.0,0.0002,2]
[373457838,1753014695745,-210.86573235,0.0002,3]
[373457839,1753014695754,-210.86573235,0.0002,7]
[373457840,1753014695763,-1000.0,0.0002,2]
[373457841,1753014695772,-205.417696,0.0002,2]
[373457842,1753014695782,-205.417696,0.0002,2]
[373457843,1753014695791,-205.417696,0.0002,2]
[373457844,1753014695801,-205.417696,0.0002,2]
[373457845,1753014695811,-371.712937,0.0002,2]
[373457846,1753014695820,-371.712937,0.0002,2]
[373457847,1753014695829,-371.712937,0.0002,2]
[373457848,1753014695838,-371.712937,0.0002,2]
[373457849,1753014695847,-476.8747822,0.0002,3]
[373457850,1753014695857,-476.8747822,0.0002,7]
[373457851,1753014695867,-314.355759,0.0002,2]
[373457852,1753014695876,-314.355759,0.0002,2]
[373457853,1753014695885,-646.182708,0.0002,2]
[373457854,1753014695895,-314.355759,0.0002,2]
[373457855,1753014695904,-646.182708,0.0002,2]
[373457856,1753014695915,-314.355759,0.0002,2]
[373457857,1753014695924,-151.0,0.0002,2]
[373457858,1753014695934,-151.0,0.0002,2]
[373457859,1753014695943,-646.182708,0.0002,2]
[373457860,1753014695953,-646.182708,0.0002,2]
[373457861,1753014695962,-151.0,0.0002,2]
[373457862,1753014695972,-151.0,0.0002,2]
[373457863,1753014695981,-3950.0,0.0002,2]
[373457864,1753014695990,-151.0,0.0002,2]
[373457865,1753014696000,-151.0,0.0002,2]
[373457866,1753014696009,-1264.38909209,0.0002,2]
[373457867,1753014696020,-4043.55789981,0.0002,2]
[373457868,1753014696030,-947.01767439,0.0002,2]
[373457869,1753014696039,-1020.41325327,0.0002,2]
[373457870,1753014696048,-810.66302889,0.0002,2]
[373457871,1753014696058,-55622.2903552,0.0002,2]
[373457872,1753014696067,-200.0,0.0002,2]
[373457873,1753014696076,-151.0,0.0002,2]
[373457874,1753014696085,-151.0,0.0002,2]
[373457875,1753014696095,-565.239474,0.0002,2]
[373457876,1753014696104,-565.239474,0.0002,2]
[373457877,1753014696114,-565.239474,0.0002,2]
[373457878,1753014696124,-565.239474,0.0002,2]
[373457879,1753014696134,-4000.0,0.0002,4]
[373457880,1753014696145,-151.0,0.0002,2]
[373457881,1753014696154,-151.0,0.0002,2]
[373457882,1753014696165,-262.905788,0.0002,2]
[373457883,1753014696174,-5772.0,0.0002001,2]
[373457884,1753014696183,-242.0,0.00020027,2]
[373457885,1753014696193,-1000.0,0.00020039,2]
[373457886,1753014696203,-957.99,0.00020039,2]
[373457887,1753014696212,-1632.7,0.00020039,2]
[373457888,1753014696221,-1786.06,0.00020039,2]
[373457889,1753014696231,-6720.51,0.00020039,2]
[373457890,1753014696240,-899.08,0.00020039,2]
[373457891,1753014696249,-1176.45,0.00020039,2]
[373457892,1753014696259,-1869.33,0.00020039,2]
[373457893,1753014696268,-242.0,0.00020048,2]
[373457894,1753014696278,-418.0,0.0002005,2]
[373457895,1753014696287,-700.78,0.00020053,2]
[373457896,1753014696297,-480.0,0.00020053,2]
[373457897,1753014696306,-33656.18,0.00020053,2]
[373457898,1753014696316,-3194.98,0.00020053,2]
[373457899,1753014696326,-6227.64,0.00020053,2]
[373457900,1753014696335,-189.318715,0.00020054,2]
[373457901,1753014696344,-151.0,0.00020054,2]
[373457902,1753014696353,-151.0,0.00020054,2]
[373457903,1753014696363,-480.0,0.00020054,2]
[373457904,1753014696372,-480.0,0.00020054,2]
[373457905,1753014696381,-480.0,0.00020054,2]
[373457906,1753014696390,-480.0,0.00020054,2]
[373457907,1753014696400,-480.0,0.00020054,2]
[373457908,1753014696409,-480.0,0.00020054,2]
[373457909,1753014696418,-480.0,0.00020054,2]
[373457910,1753014696428,-480.0,0.00020054,2]
[373457911,1753014696437,-480.0,0.00020054,2]
[373457912,1753014696446,-151.0,0.00020054,2]
[373457913,1753014696455,-480.0,0.00020054,2]
[373457914,1753014696464,-480.0,0.00020054,2]
[373457915,1753014696474,-151.0,0.00020054,2]
[373457916,1753014696483,-1149.63,0.00020054,2]
[373457917,1753014696492,-480.0,0.00020054,2]
[373457918,1753014696501,-480.0,0.00020054,2]
[373457919,1753014696510,-1110.3,0.00020054,2]
[373457920,1753014696519,-1157.17,0.00020054,2]
[373457921,1753014696528,-624.25,0.00020054,2]
[373457922,1753014696537,-2174.54,0.00020054,2]
[373457923,1753014696546,-797.31,0.00020054,2]
[373457924,1753014696556,-1022.195767,0.00020054,2]
[373457925,1753014696565,-480.0,0.00020054,2]
[373457926,1753014696574,-663.69,0.00020054,2]
[373457927,1753014696583,-576.83283049,0.00020054,2]
[373457928,1753014696593,-616.09,0.00020054,2]
[373457929,1753014696603,-480.0,0.00020054,2]
[373457930,1753014696612,-1284.099981,0.00020054,2]
[373457931,1753014696622,-1246.634372,0.00020054,2]
[373457932,1753014696632,-480.0,0.00020054,2]
[373457933,1753014696641,-664.53,0.00020054,2]
[373457934,1753014696653,-480.0,0.00020054,2]
[373457935,1753014696663,-1646.34,0.00020054,2]
[373457936,1753014696672,-200.618341,0.00020054,2]
[373457937,1753014696681,-200.618341,0.00020054,2]
[373457938,1753014696691,-480.0,0.00020054,2]
[373457939,1753014696699,-480.0,0.00020054,2]
[373457940,1753014696708,-480.0,0.00020054,2]
[373457941,1753014696718,-151.0,0.00020054,2]
[373457942,1753014696728,-480.0,0.00020054,2]
[373457943,1753014696738,-663.81,0.00020054,2]
[373457944,1753014696747,-281.461176,0.00020054,2]
[373457945,1753014696757,-603.17,0.00020054,2]
[373457946,1753014696766,-508.26,0.00020054,2]
[373457947,1753014696775,-646.27,0.00020054,2]
[373457948,1753014696784,-650.94,0.00020054,2]
[373457949,1753014696793,-2188.28,0.00020054,2]
[373457950,1753014696802,-480.0,0.00020054,2]
[373457951,1753014696811,-3039.93,0.00020054,2]
[373457952,1753014696823,-480.0,0.00020054,2]
[373457953,1753014696836,-699.61,0.00020054,2]
[373457954,1753014696846,-540.27,0.00020054,2]
[373457955,1753014696855,-280.1,0.00020054,2]
[373457956,1753014696865,-911.93,0.00020054,2]
[373457957,1753014696874,-152.110101,0.00020054,2]
[373457958,1753014696883,-284.21586752,0.00020054,2]
[373457959,1753014696894,-480.0,0.00020054,2]
[373457960,1753014696903,-480.0,0.00020054,2]
[373457961,1753014696914,-480.0,0.00020054,2]
[373457962,1753014696923,-813.91,0.00020054,2]
[373457963,1753014696932,-480.0,0.00020054,2]
[373457964,1753014696942,-652.74,0.00020054,2]
[373457965,1753014696952,-480.0,0.00020054,2]
[373457966,1753014696962,-679.68,0.00020054,2]
[373457967,1753014696974,-1671.03,0.00020054,2]
[373457968,1753014696984,-480.0,0.00020054,2]
[373457969,1753014696993,-620.3,0.00020054,2]
[373457970,1753014697002,-583.7,0.00020054,2]
[373457971,1753014697011,-480.0,0.00020054,2]
[373457972,1753014697022,-480.0,0.00020054,2]
[373457973,1753014697034,-480.0,0.00020054,2]
[373457974,1753014697045,-610.89,0.00020054,2]
[373457975,1753014697056,-480.0,0.00020054,2]
[373457976,1753014697065,-768.41,0.00020054,2]
[373457977,1753014697076,-765.32,0.00020054,2]
[373457978,1753014697086,-480.0,0.00020054,2]
[373457979,1753014697096,-480.0,0.00020054,2]
[373457980,1753014697106,-164.972825,0.00020054,2]
[373457981,1753014697117,-480.0,0.00020054,2]
[373457982,1753014697127,-480.0,0.00020054,2]
[373457983,1753014697137,-575.87,0.00020054,2]
[373457984,1753014697146,-983.09,0.00020054,2]
[373457985,1753014697156,-593.69,0.00020054,2]
[373457986,1753014697168,-832.57,0.00020054,2]
[373457987,1753014697177,-480.0,0.00020054,2]
[373457988,1753014697187,-345.60398049,0.00020054,2]
[373457989,1753014697196,-480.0,0.00020054,2]
[373457990,1753014697206,-480.0,0.00020054,2]
[373457991,1753014697217,-737.5,0.00020054,2]
[373457992,1753014697226,-480.0,0.00020054,2]
[373457993,1753014697236,-932.28,0.00020054,2]
[373457994,1753014697247,-480.0,0.00020054,2]
[373457995,1753014697258,-685.439317,0.00020054,2]
[373457996,1753014697269,-402.99088095,0.00020054,2]
[373457997,1753014697279,-612.05721322,0.00020054,2]
[373457998,1753014697291,-510.1,0.00020054,2]
[373457999,1753014697302,-480.0,0.00020054,2]
[373458000,1753014697312,-480.0,0.00020054,2]
[373458001,1753014697322,-152.615949,0.00020054,2]
[373458002,1753014697331,-208.09044299,0.00020054,2]
[373458003,1753014697339,-152.615949,0.00020054,2]
[373458004,1753014697348,-480.0,0.00020054,2]
[373458005,1753014697357,-836.95,0.00020054,2]
[373458006,1753014697366,-480.0,0.00020054,2]
[373458007,1753014697375,-480.0,0.00020054,2]
[373458008,1753014697385,-480.0,0.00020054,2]
[373458009,1753014697398,-870.11,0.00020054,2]
[373458010,1753014697407,-511.37,0.00020054,2]
[373458011,1753014697419,-151.0,0.00020054,2]
[373458012,1753014697429,-695.17,0.00020054,2]
[373458013,1753014697439,-601.02736698,0.00020054,2]
[373458014,1753014697448,-151.0,0.00020054,2]
[373458015,1753014697458,-480.0,0.00020054,2]
[373458016,1753014697467,-820.22,0.00020054,2]
[373458017,1753014697476,-751.71,0.00020054,2]
[373458018,1753014697486,-480.0,0.00020054,2]
[373458019,1753014697496,-1085.44,0.00020054,2]
[373458020,1753014697505,-543.84,0.00020054,2]
[373458021,1753014697515,-917.97,0.00020054,2]
[373458022,1753014697524,-480.0,0.00020054,2]
[373458023,1753014697533,-600.52,0.00020054,2]
[373458024,1753014697543,-151.0,0.00020054,2]
[373458025,1753014697553,-612.49,0.00020054,2]